fUST/lending_fUST_20250605
["ID","MTS","AMOUNT","RATE_DAILY","PERIOD"]
[364489501,1749120633764,-440.0,0.00018356,2]
[364489502,1749120633773,-420.0,0.00018356,2]
[364489504,1749120633782,-423.95202497,0.00018356,2]
[364489506,1749120633792,-440.0,0.00018356,2]
[364489508,1749120633801,-440.0,0.00018356,2]
[364489509,1749120633811,-440.0,0.00018356,2]
[364489511,1749120633820,-440.0,0.00018356,2]
[364489513,1749120633830,-440.0,0.00018356,2]
[364489514,1749120633839,-420.0,0.00018356,2]
[364489516,1749120633848,-440.0,0.00018356,2]
[364489518,1749120633859,-440.0,0.00018356,2]
[364489520,1749120633868,-440.0,0.00018356,2]
[364489521,1749120633878,-440.0,0.00018356,2]
[364489523,1749120633887,-440.0,0.00018356,2]
[364489525,1749120633897,-410.0,0.00018356,2]
[364489526,1749120633906,-440.0,0.00018356,2]
[364489528,1749120633916,-440.0,0.00018356,2]
[364489529,1749120633937,-440.0,0.00018356,2]
[364489531,1749120633947,-350.0,0.00018356,2]
[364489532,1749120633957,-440.0,0.00018356,2]
[364489534,1749120633968,-430.0,0.00018356,2]
[364489536,1749120633977,-440.0,0.00018356,2]
[364489538,1749120633986,-435.24736332,0.00018356,2]
[364489539,1749120633997,-440.0,0.00018356,2]
[364489541,1749120634006,-430.0,0.00018356,2]
[364489543,1749120634016,-440.0,0.00018356,2]
[364489544,1749120634026,-440.0,0.00018356,2]
[364489546,1749120634036,-430.0,0.00018356,2]
[364489547,1749120634046,-327.56847809,0.00018356,2]
[364489548,1749120634057,-440.0,0.00018356,2]
[364489549,1749120634066,-403.03100876,0.00018356,2]
[364489550,1749120634077,-401.26695898,0.00018356,2]
[364489551,1749120634087,-440.72880569,0.00018356,2]
[364489552,1749120634097,-430.56797011,0.00018356,2]
[364489553,1749120634106,-420.0,0.00018356,2]
[364489554,1749120634116,-440.0,0.00018356,2]
[364489555,1749120634125,-440.0,0.00018356,2]
[364489557,1749120634135,-440.0,0.00018356,2]
[364489559,1749120634145,-440.0,0.00018356,2]
[364489560,1749120634154,-440.0,0.00018356,2]
[364489562,1749120634164,-500.0,0.00018356,2]
[364489564,1749120634174,-430.0,0.00018356,2]
[364489565,1749120634185,-504.49440068,0.00018356,2]
[364489567,1749120634194,-440.0,0.00018356,2]
[364489569,1749120634204,-440.0,0.00018356,2]
[364489571,1749120634215,-430.0,0.00018356,2]
[364489572,1749120634225,-440.0,0.00018356,2]
[364489574,1749120634234,-440.0,0.00018356,2]
[364489576,1749120634244,-430.0,0.00018356,2]
[364489578,1749120634254,-440.0,0.00018356,2]
[364489579,1749120634264,-580.0,0.00018356,2]
[364489581,1749120634274,-440.0,0.00018356,2]
[364489583,1749120634283,-215.1268,0.00018356,2]
[364489584,1749120634293,-440.0,0.00018356,2]
[364489585,1749120634305,-440.0,0.00018356,2]
[364489586,1749120634315,-440.0,0.00018356,2]
[364489587,1749120634325,-440.0,0.00018356,2]
[364489588,1749120634335,-430.0,0.00018356,2]
[364489589,1749120634345,-440.0,0.00018356,2]
[364489591,1749120634355,-440.0,0.00018356,2]
[364489593,1749120634365,-440.0,0.00018356,2]
[364489594,1749120634375,-440.0,0.00018356,2]
[364489602,1749120634505,-430.0,0.00018356,2]
[364489603,1749120634516,-440.0,0.00018356,2]
[364489605,1749120634527,-430.0,0.00018356,2]
[364489607,1749120634536,-440.0,0.00018356,2]
[364489609,1749120634545,-430.0,0.00018356,2]
[364489610,1749120634555,-440.0,0.00018356,2]
[364489612,1749120634565,-430.0,0.00018356,2]
[364489614,1749120634575,-440.0,0.00018356,2]
[364489616,1749120634584,-430.0,0.00018356,2]
[364489617,1749120634593,-573.29179263,0.00018356,2]
[364489619,1749120634602,-480.40700973,0.00018356,2]
[364489621,1749120634611,-430.0,0.00018356,2]
[364489623,1749120634621,-440.0,0.00018356,2]
[364489624,1749120634630,-417.76,0.00018356,2]
[364489626,1749120634639,-430.0,0.00018356,2]
[364489628,1749120634648,-388.08608637,0.00018356,2]
[364489630,1749120634658,-420.0,0.00018356,2]
[364489631,1749120634667,-440.0,0.00018356,2]
[364489633,1749120634676,-440.0,0.00018356,2]
[364489635,1749120634685,-440.0,0.00018356,2]
[364489636,1749120634695,-391.21854392,0.00018356,2]
[364489638,1749120634704,-440.0,0.00018356,2]
[364489640,1749120634714,-440.0,0.00018356,2]
[364489642,1749120634724,-188.83160997,0.00018356,2]
[364489644,1749120634733,-440.0,0.00018356,2]
[364489645,1749120634742,-440.0,0.00018356,2]
[364489647,1749120634752,-440.0,0.00018356,2]
[364489649,1749120634763,-440.0,0.00018356,2]
[364489651,1749120634773,-440.0,0.00018356,2]
[364489652,1749120634782,-440.0,0.00018356,2]
[364489654,1749120634792,-440.0,0.00018356,2]
[364489656,1749120634802,-400.0,0.00018356,2]
[364489658,1749120634811,-430.0,0.00018356,2]
[364489660,1749120634820,-440.0,0.00018356,2]
[364489661,1749120634830,-440.0,0.00018356,2]
[364489663,1749120634840,-420.0,0.00018356,2]
[364489665,1749120634849,-440.0,0.00018356,2]
[364489667,1749120634858,-440.0,0.00018356,2]
[364489668,1749120634868,-491.69200944,0.00018356,2]
[364489669,1749120634877,-440.0,0.00018356,2]
[364489670,1749120634887,-440.0,0.00018356,2]
[364489671,1749120634899,-440.0,0.00018356,2]
[364489672,1749120634910,-440.0,0.00018356,2]
[364489673,1749120634919,-360.21989938,0.00018356,2]
[364489674,1749120634928,-440.0,0.00018356,2]
[364489675,1749120634937,-430.37016652,0.00018356,2]
[364489676,1749120634947,-430.0,0.00018356,2]
[364489677,1749120634956,-264.24397526,0.00018356,2]
[364489678,1749120634966,-440.0,0.00018356,2]
[364489679,1749120634976,-517.8481705,0.00018356,2]
[364489680,1749120634985,-440.0,0.00018356,2]
[364489681,1749120634994,-430.0,0.00018356,2]
[364489682,1749120635003,-260.81204356,0.00018356,2]
[364489683,1749120635014,-440.0,0.00018356,2]
[364489684,1749120635024,-440.0,0.00018356,2]
[364489685,1749120635034,-440.0,0.00018356,2]
[364489686,1749120635043,-440.0,0.00018356,2]
[364489687,1749120635053,-440.0,0.00018356,2]
[364489688,1749120635062,-440.0,0.00018356,2]
[364489689,1749120635072,-440.0,0.00018356,2]
[364489690,1749120635081,-440.0,0.00018356,2]
[364489691,1749120635091,-2371.35,0.00018356,2]
[364489692,1749120635100,-440.0,0.00018356,2]
[364489693,1749120635110,-440.0,0.00018356,2]
[364489694,1749120635119,-440.0,0.00018356,2]
[364489695,1749120635129,-440.0,0.00018356,2]
[364489696,1749120635138,-440.0,0.00018356,2]
[364489697,1749120635147,-440.0,0.00018356,2]
[364489698,1749120635157,-440.0,0.00018356,2]
[364489699,1749120635166,-440.0,0.00018356,2]
[364489700,1749120635175,-426.68893584,0.00018356,2]
[364489701,1749120635185,-515.48,0.00018356,2]
[364489702,1749120635194,-440.0,0.00018356,2]
[364489703,1749120635204,-440.0,0.00018356,2]
[364489704,1749120635215,-440.0,0.00018356,2]
[364489705,1749120635224,-552.01713512,0.00018356,2]
[364489706,1749120635233,-440.0,0.00018356,2]
[364489707,1749120635242,-440.0,0.00018356,2]
[364489708,1749120635251,-440.0,0.00018356,2]
[364489709,1749120635261,-440.0,0.00018356,2]
[364489710,1749120635271,-440.0,0.00018356,2]
[364489711,1749120635281,-449.69,0.00018356,2]
[364489712,1749120635292,-440.0,0.00018356,2]
[364489713,1749120635303,-397.44528553,0.00018356,2]
[364489714,1749120635314,-480.0,0.00018356,2]
[364489715,1749120635325,-191.42443319,0.00018356,2]
[364489716,1749120635334,-350.0,0.00018356,2]
[364489717,1749120635345,-440.0,0.00018356,2]
[364489718,1749120635353,-440.0,0.00018356,2]
[364489719,1749120635363,-2621.04,0.00018356,2]
[364489720,1749120635372,-626.79,0.00018356,2]
[364489721,1749120635385,-626.79,0.00018356,2]
[364489722,1749120635393,-236.90476251,0.00018356,2]
[364489723,1749120635401,-626.79,0.00018356,2]
[364489724,1749120635410,-626.79,0.00018356,2]
[364489725,1749120635417,-440.0,0.00018356,2]
[364489726,1749120635423,-440.0,0.00018356,2]
[364489727,1749120635430,-280.0,0.00018356,2]
[364489728,1749120635437,-563.4,0.00018356,2]
[364489729,1749120635445,-1603.39,0.00018356,2]
[364489730,1749120635455,-430.0,0.00018356,2]
[364489731,1749120635465,-440.0,0.00018356,2]
[364489732,1749120635475,-1735.19,0.00018356,2]
[364489733,1749120635485,-410.0,0.00018356,2]
[364489734,1749120635494,-420.0,0.00018356,2]
[364489735,1749120635504,-440.0,0.00018356,2]
[364489736,1749120635513,-440.0,0.00018356,2]
[364489737,1749120635523,-609.58,0.00018356,2]
[364489738,1749120635532,-1074.21,0.00018356,2]
[364489739,1749120635542,-440.0,0.00018356,2]
[364489740,1749120635552,-400.0,0.00018356,2]
[364489741,1749120635561,-440.0,0.00018356,2]
[364489742,1749120635571,-440.0,0.00018356,2]
[364489743,1749120635580,-440.0,0.00018356,2]
[364489744,1749120635590,-440.0,0.00018356,2]
[364489745,1749120635599,-583.66,0.00018356,2]
[364489746,1749120635608,-390.0,0.00018356,2]
[364489747,1749120635617,-440.0,0.00018356,2]
[364489748,1749120635627,-440.0,0.00018356,2]
[364489749,1749120635636,-435.39267255,0.00018356,2]
[364489750,1749120635646,-1078.73,0.00018356,2]
[364489751,1749120635656,-440.0,0.00018356,2]
[364489752,1749120635665,-440.0,0.00018356,2]
[364489753,1749120635675,-440.0,0.00018356,2]
[364489754,1749120635684,-440.0,0.00018356,2]
[364489755,1749120635694,-440.0,0.00018356,2]
[364489756,1749120635704,-440.0,0.00018356,2]
[364489757,1749120635713,-440.0,0.00018356,2]
[364489758,1749120635722,-426.60734563,0.00018356,2]
[364489759,1749120635732,-440.0,0.00018356,2]
[364489760,1749120635742,-420.0,0.00018356,2]
[364489761,1749120635751,-430.0,0.00018356,2]
[364489762,1749120635761,-410.0,0.00018356,2]
[364489763,1749120635771,-948.08,0.00018356,2]
[364489764,1749120635780,-440.0,0.00018356,2]
[364489765,1749120635790,-440.0,0.00018356,2]
[364489766,1749120635799,-440.0,0.00018356,2]
[364489767,1749120635808,-440.0,0.00018356,2]
[364489768,1749120635818,-440.0,0.00018356,2]
[364489769,1749120635828,-430.0,0.00018356,2]
[364489770,1749120635838,-364.2046547,0.00018356,2]
[364489771,1749120635848,-807.25,0.00018356,2]
[364489772,1749120635858,-440.0,0.00018356,2]
[364489773,1749120635867,-430.0,0.00018356,2]
[364489774,1749120635877,-440.0,0.00018356,2]
[364489775,1749120635887,-440.0,0.00018356,2]
[364489776,1749120635896,-440.0,0.00018356,2]
[364489777,1749120635906,-454.64,0.00018356,2]
[364489778,1749120635915,-440.0,0.00018356,2]
[364489779,1749120635925,-440.0,0.00018356,2]
[364489780,1749120635934,-440.0,0.00018356,2]
[364489781,1749120635943,-440.0,0.00018356,2]
[364489782,1749120635952,-1149.08,0.00018356,2]
[364489783,1749120635963,-440.0,0.00018356,2]
[364489784,1749120635972,-339.64031325,0.00018356,2]
[364489785,1749120635981,-370.0,0.00018356,2]
[364489786,1749120635991,-252.93233918,0.00018356,2]
[364489787,1749120636000,-440.0,0.00018356,2]
[364489788,1749120636009,-440.0,0.00018356,2]
[364489789,1749120636018,-395.34589444,0.00018356,2]
[364489790,1749120636027,-440.0,0.00018356,2]
[364489791,1749120636037,-430.0,0.00018356,2]
[364489792,1749120636047,-440.0,0.00018356,2]
[364489793,1749120636056,-440.0,0.00018356,2]
[364489794,1749120636065,-631.36,0.00018356,2]
[364489795,1749120636074,-440.0,0.00018356,2]
[364489796,1749120636083,-440.0,0.00018356,2]
[364489797,1749120636092,-440.0,0.00018356,2]
[364489798,1749120636103,-1087.02,0.00018356,2]
[364489799,1749120636113,-2091.84,0.00018356,2]
[364489800,1749120636122,-440.0,0.00018356,2]
[364489801,1749120636132,-1507.63,0.00018356,2]
[364489802,1749120636142,-420.0,0.00018356,2]
[364489803,1749120636152,-420.0,0.00018356,2]
[364489804,1749120636165,-224.65117827,0.00018356,2]
[364489805,1749120636175,-440.0,0.00018356,2]
[364489806,1749120636184,-440.0,0.00018356,2]
[364489807,1749120636193,-440.0,0.00018356,2]
[364489808,1749120636204,-440.0,0.00018356,2]
[364489809,1749120636213,-440.0,0.00018356,2]
[364489810,1749120636223,-440.0,0.00018356,2]
[364489811,1749120636232,-440.0,0.00018356,2]
[364489812,1749120636242,-410.0,0.00018356,2]
[364489813,1749120636251,-440.0,0.00018356,2]
[364489814,1749120636260,-1841.71774051,0.00018383,2]
[364489815,1749120636270,-182.1,0.0001853,3]
[364489816,1749120636280,-4447.99911635,0.0001853,2]
[364489817,1749120636290,-3802.01,0.00018538,2]
[364489818,1749120636302,-160.0,0.00018611,2]
[364489819,1749120636312,-1841.71774051,0.00018624,2]
[364489820,1749120636321,-626.79,0.00018626,2]
[364489821,1749120636331,-626.79,0.00018628,2]
[364489822,1749120636342,-2619.24,0.00018628,2]
[364489823,1749120636352,-907.14,0.00018628,2]
[364489824,1749120636361,-430.0,0.00018628,2]
[364489825,1749120636371,-440.0,0.00018628,2]
[364489826,1749120636382,-626.79,0.00018629,2]
[364489827,1749120636391,-626.79,0.00018629,2]
[364489828,1749120636401,-626.79,0.00018629,2]
[364489829,1749120636411,-626.79,0.00018629,2]
[364489830,1749120636421,-626.79,0.00018629,2]
[364489831,1749120636430,-430.0,0.0001863,2]
[364489832,1749120636440,-440.0,0.0001863,2]
[364489833,1749120636450,-440.0,0.0001863,2]
[364489834,1749120636459,-390.0,0.0001863,2]
[364489835,1749120636469,-440.0,0.0001863,2]
[364489836,1749120636479,-430.0,0.0001863,2]
[364489837,1749120636488,-440.0,0.0001863,2]
[364489838,1749120636498,-440.0,0.0001863,2]
[364489839,1749120636507,-440.0,0.0001863,2]
[364489840,1749120636517,-440.0,0.0001863,2]
[364489841,1749120636527,-440.0,0.0001863,2]
[364489842,1749120636537,-440.0,0.0001863,2]
[364489843,1749120636546,-580.7,0.0001863,2]
[364489844,1749120636556,-151.0,0.0001863,2]
[364489845,1749120636565,-440.0,0.0001863,2]
[364489846,1749120636575,-440.0,0.0001863,2]
[364489847,1749120636585,-151.0,0.0001863,2]
[364489848,1749120636594,-429.4963616,0.0001863,2]
[364489849,1749120636604,-440.0,0.0001863,2]
[364489850,1749120636613,-440.0,0.0001863,2]
[364489851,1749120636622,-440.0,0.0001863,2]
[364489852,1749120636632,-451.66483222,0.0001863,2]
[364489853,1749120636641,-257.53953565,0.0001863,2]
[364489854,1749120636651,-151.0,0.0001863,2]
[364489855,1749120636660,-440.0,0.0001863,2]
[364489856,1749120636669,-440.0,0.0001863,2]
[364489857,1749120636679,-440.0,0.0001863,2]
[364489858,1749120636688,-440.0,0.0001863,2]
[364489859,1749120636698,-440.0,0.0001863,2]
[364489860,1749120636708,-572.19446849,0.0001863,2]
[364489861,1749120636718,-440.0,0.0001863,2]
[364489862,1749120636727,-440.0,0.0001863,2]
[364489863,1749120636737,-440.0,0.0001863,2]
[364489864,1749120636747,-420.0,0.0001863,2]
[364489865,1749120636757,-440.0,0.0001863,2]
[364489866,1749120636767,-351.26527999,0.0001863,2]
[364489867,1749120636777,-440.0,0.0001863,2]
[364489868,1749120636786,-440.0,0.0001863,2]
[364489869,1749120636796,-440.0,0.0001863,2]
[364489870,1749120636805,-153.099473,0.0001863,2]
[364489871,1749120636815,-153.099473,0.0001863,2]
[364489872,1749120636824,-410.0,0.0001863,2]
[364489873,1749120636834,-501.12658918,0.0001863,2]
[364489874,1749120636844,-151.0,0.0001863,2]
[364489875,1749120636854,-440.0,0.0001863,2]
[364489876,1749120636864,-151.0,0.0001863,2]
[364489877,1749120636873,-440.0,0.0001863,2]
[364489878,1749120636883,-440.0,0.0001863,2]
[364489879,1749120636893,-430.0,0.0001863,2]
[364489880,1749120636903,-440.0,0.0001863,2]
[364489881,1749120636913,-420.0,0.0001863,2]
[364489882,1749120636923,-151.0,0.0001863,2]
[364489883,1749120636933,-151.0,0.0001863,2]
[364489884,1749120636942,-440.0,0.0001863,2]
[364489885,1749120636951,-508.79,0.0001863,2]
[364489886,1749120637059,-151.0,0.0001863,2]
[364489887,1749120637072,-151.0,0.0001863,2]
[364489888,1749120637081,-224.4738317,0.0001863,2]
[364489889,1749120637091,-440.0,0.0001863,2]
[364489890,1749120637100,-440.0,0.0001863,2]
[364489891,1749120637109,-440.0,0.0001863,2]
[364489892,1749120637119,-440.0,0.0001863,2]
[364489893,1749120637129,-440.0,0.0001863,2]
[364489894,1749120637138,-440.0,0.0001863,2]
[364489895,1749120637147,-420.0,0.0001863,2]
[364489896,1749120637156,-409.1014355,0.0001863,2]
[364489897,1749120637166,-154.889818,0.0001863,2]
[364489898,1749120637175,-440.0,0.0001863,2]
[364489899,1749120637185,-420.0,0.0001863,2]
[364489900,1749120637194,-440.0,0.0001863,2]
[364489901,1749120637204,-440.0,0.0001863,2]
[364489902,1749120637214,-422.72494564,0.0001863,2]
[364489903,1749120637223,-440.0,0.0001863,2]
[364489904,1749120637232,-386.73429613,0.0001863,2]
[364489905,1749120637241,-410.47161281,0.0001863,2]
[364489906,1749120637250,-151.0,0.0001863,2]
[364489907,1749120637260,-151.0,0.0001863,2]
[364489908,1749120637274,-245.44399174,0.0001863,2]
[364489909,1749120637290,-440.0,0.0001863,2]
[364489910,1749120637300,-430.0,0.0001863,2]
[364489911,1749120637312,-181.28,0.0001863,2]
[364489912,1749120637321,-440.0,0.0001863,2]
[364489913,1749120637330,-420.0,0.0001863,2]
[364489914,1749120637339,-440.0,0.0001863,2]
[364489915,1749120637350,-440.0,0.0001863,2]
[364489916,1749120637360,-151.0,0.0001863,2]
[364489917,1749120637369,-440.0,0.0001863,2]
[364489918,1749120637380,-353.93507252,0.0001863,2]
[364489919,1749120637389,-151.0,0.0001863,2]
[364489920,1749120637399,-2371.35,0.0001863,2]
[364489921,1749120637409,-151.0,0.0001863,2]
[364489922,1749120637419,-378.56434652,0.0001863,2]
[364489923,1749120637428,-380.0,0.0001863,2]
[364489924,1749120637438,-440.0,0.0001863,2]
[364489925,1749120637447,-440.0,0.0001863,2]
[364489926,1749120637456,-440.0,0.0001863,2]
[364489927,1749120637465,-151.0,0.0001863,2]
[364489928,1749120637475,-151.0,0.0001863,2]
[364489929,1749120637485,-440.0,0.0001863,2]
[364489930,1749120637494,-469.85050634,0.0001863,2]
[364489931,1749120637503,-440.0,0.0001863,2]
[364489932,1749120637512,-515.48,0.0001863,2]
[364489933,1749120637522,-182.977676,0.0001863,2]
[364489934,1749120637532,-410.0,0.0001863,2]
[364489935,1749120637541,-440.0,0.0001863,2]
[364489936,1749120637550,-151.0,0.0001863,2]
[364489937,1749120637559,-440.0,0.0001863,2]
[364489938,1749120637568,-440.0,0.0001863,2]
[364489939,1749120637577,-440.0,0.0001863,2]
[364489940,1749120637586,-151.0,0.0001863,2]
[364489941,1749120637595,-440.0,0.0001863,2]
[364489942,1749120637604,-440.0,0.0001863,2]
[364489943,1749120637613,-440.0,0.0001863,2]
[364489944,1749120637622,-449.69,0.0001863,2]
[364489945,1749120637631,-440.0,0.0001863,2]
[364489946,1749120637640,-402.56741331,0.0001863,2]
[364489947,1749120637649,-440.0,0.0001863,2]
[364489948,1749120637658,-2621.04,0.0001863,2]
[364489949,1749120637667,-440.0,0.0001863,2]
[364489950,1749120637676,-440.0,0.0001863,2]
[364489951,1749120637685,-563.4,0.0001863,2]
[364489952,1749120637695,-1603.39,0.0001863,2]
[364489953,1749120637704,-440.0,0.0001863,2]
[364489954,1749120637714,-1735.19,0.0001863,2]
[364489955,1749120637723,-152.118527,0.0001863,2]
[364489956,1749120637732,-440.0,0.0001863,2]
[364489957,1749120637741,-410.0,0.0001863,2]
[364489958,1749120637750,-609.58,0.0001863,2]
[364489959,1749120637759,-1074.21,0.0001863,2]
[364489960,1749120637769,-440.0,0.0001863,2]
[364489961,1749120637778,-400.0,0.0001863,2]
[364489962,1749120637788,-440.0,0.0001863,2]
[364489963,1749120637797,-151.0,0.0001863,2]
[364489964,1749120637806,-151.0,0.0001863,2]
[364489965,1749120637815,-583.66,0.0001863,2]
[364489966,1749120637825,-440.0,0.0001863,2]
[364489967,1749120637835,-370.0,0.0001863,2]
[364489968,1749120637845,-151.0,0.0001863,2]
[364489969,1749120637854,-163.081009,0.0001863,2]
[364489970,1749120637864,-1078.73,0.0001863,2]
[364489971,1749120637874,-440.0,0.0001863,2]
[364489972,1749120637883,-440.0,0.0001863,2]
[364489973,1749120637893,-440.0,0.0001863,2]
[364489974,1749120637903,-440.0,0.0001863,2]
[364489975,1749120637913,-440.0,0.0001863,2]
[364489976,1749120637922,-440.0,0.0001863,2]
[364489977,1749120637931,-440.0,0.0001863,2]
[364489978,1749120637940,-151.0,0.0001863,2]
[364489979,1749120637950,-151.0,0.0001863,2]
[364489980,1749120637959,-948.08,0.0001863,2]
[364489981,1749120637969,-440.0,0.0001863,2]
[364489982,1749120637977,-440.0,0.0001863,2]
[364489983,1749120637986,-440.0,0.0001863,2]
[364489984,1749120637996,-440.0,0.0001863,2]
[364489985,1749120638005,-807.25,0.0001863,2]
[364489986,1749120638016,-440.0,0.0001863,2]
[364489987,1749120638025,-440.0,0.0001863,2]
[364489988,1749120638035,-410.0,0.0001863,2]
[364489989,1749120638044,-440.0,0.0001863,2]
[364489990,1749120638053,-454.64,0.0001863,2]
[364489991,1749120638062,-244.57708582,0.0001863,2]
[364489992,1749120638072,-151.0,0.0001863,2]
[364489993,1749120638081,-440.0,0.0001863,2]
[364489994,1749120638091,-151.0,0.0001863,2]
[364489995,1749120638100,-401.69,0.0001863,2]
[364489996,1749120638109,-1149.08,0.0001863,2]
[364489997,1749120638119,-200.90035427,0.0001863,2]
[364489998,1749120638128,-440.0,0.0001863,2]
[364489999,1749120638138,-440.0,0.0001863,2]
[364490000,1749120638147,-187.29422225,0.0001863,2]
[364490001,1749120638157,-440.0,0.0001863,2]
[364490002,1749120638166,-577.74330759,0.0001863,2]
[364490003,1749120638177,-631.36,0.0001863,2]
[364490004,1749120638186,-440.0,0.0001863,2]
[364490005,1749120638195,-440.0,0.0001863,2]
[364490006,1749120638204,-151.0,0.0001863,2]
[364490007,1749120638213,-151.0,0.0001863,2]
[364490008,1749120638222,-440.0,0.0001863,2]
[364490009,1749120638232,-1087.02,0.0001863,2]
[364490010,1749120638242,-2091.84,0.0001863,2]
[364490011,1749120638253,-440.0,0.0001863,2]
[364490012,1749120638262,-1507.63,0.0001863,2]
[364490013,1749120638272,-440.0,0.0001863,2]
[364490014,1749120638282,-440.0,0.0001863,2]
[364490015,1749120638292,-440.0,0.0001863,2]
[364490016,1749120638303,-440.0,0.0001863,2]
[364490017,1749120638313,-440.0,0.0001863,2]
[364490018,1749120638323,-440.0,0.0001863,2]
[364490019,1749120638333,-151.0,0.0001863,2]
[364490020,1749120638342,-1841.71774051,0.00018866,2]
[364490021,1749120638353,-626.79,0.00018901,2]
[364490022,1749120638363,-2619.24,0.00018902,2]
[364490023,1749120638372,-907.14,0.00018902,2]
[364490024,1749120638384,-440.0,0.00018902,2]
[364490026,1749120638395,-210.732742,0.00018903,2]
[364490028,1749120638405,-210.732742,0.00018903,2]
[364490030,1749120638414,-207.732225,0.00018903,2]
[364490032,1749120638425,-151.0,0.00018903,2]
[364490034,1749120638434,-626.79,0.00018903,2]
[364490036,1749120638444,-626.79,0.00018903,2]
[364490038,1749120638453,-626.79,0.00018903,2]
[364490040,1749120638463,-190.52098603,0.00018904,2]
[364490042,1749120638473,-440.0,0.00018904,2]
[364490044,1749120638482,-440.0,0.00018904,2]
[364490046,1749120638491,-440.0,0.00018904,2]
[364490048,1749120638501,-440.0,0.00018904,2]
[364490050,1749120638511,-440.0,0.00018904,2]
[364490052,1749120638520,-158.377826,0.00018904,2]
[364490054,1749120638529,-151.0,0.00018904,2]
[364490056,1749120638539,-375.19752,0.00018904,2]
[364490058,1749120638548,-440.0,0.00018904,2]
[364490060,1749120638558,-375.19752,0.00018904,2]
[364490062,1749120638567,-210.732742,0.00018904,2]
[364490064,1749120638576,-440.0,0.00018904,2]
[364490066,1749120638586,-210.732742,0.00018904,2]
[364490068,1749120638595,-154.98673,0.00018904,2]
[364490070,1749120638605,-151.0,0.00018904,2]
[364490072,1749120638615,-151.0,0.00018904,2]
[364490074,1749120638625,-504.32,0.00018904,2]
[364490076,1749120638634,-440.0,0.00018904,2]
[364490078,1749120638644,-151.0,0.00018904,2]
[364490081,1749120638653,-440.0,0.00018904,2]
[364490082,1749120638663,-440.0,0.00018904,2]
[364490084,1749120638672,-615.078262,0.00018904,2]
[364490087,1749120638682,-454.85705169,0.00018904,2]
[364490089,1749120638691,-615.078262,0.00018904,2]
[364490090,1749120638701,-151.0,0.00018904,2]
[364490093,1749120638712,-407.55,0.00018904,2]
[364490095,1749120638722,-482.0793356,0.00018904,2]
[364490096,1749120638731,-440.0,0.00018904,2]
[364490099,1749120638740,-440.0,0.00018904,2]
[364490100,1749120638749,-440.0,0.00018904,2]
[364490102,1749120638759,-440.0,0.00018904,2]
[364490104,1749120638768,-440.0,0.00018904,2]
[364490106,1749120638778,-440.0,0.00018904,2]
[364490108,1749120638787,-440.0,0.00018904,2]
[364490110,1749120638797,-440.0,0.00018904,2]